Cogmind - Beta 14 *** ADVENTURER MODE // 2025.03.18 @ 18:18:13 Player: Morii Result: Self-destructed Performance ------------- Evolutions (1) 500 Regions Visited (3) 600 Robots Destroyed (22) 110 Value Destroyed (570) 570 Prototype IDs (0) 0 Alien Tech Used (0) 0 Bonus (0) 0 TOTAL SCORE: 1780 Bonus ------- None Cogmind --------- Core Integrity 158/400 Matter 279/300 Energy 95/100 System Corruption 0% Temperature Cool (0) Movement Core (200) Ox3 Location -9/Materials Parts ------- > --- POWER (2) -------- (None) > --- PROPULSION (2) --- (None) > --- UTILITY (3) ------ Medium Storage Unit Trap Extractor (0/4) > --- WEAPON (2) ------- (None) > --- INVENTORY (10) --- (None) Peak State ------------ > --- POWER ------------ Light Nuclear Core > --- PROPULSION ------- Aluminum Leg Aluminum Leg > --- UTILITY ---------- Improved Heat Sink Medium Storage Unit Weapon Shielding > --- WEAPON ----------- Assault Rifle Grenade Launcher > --- INVENTORY -------- Light Ion Engine [Rating: 12] Favorites ----------- Power Light Ion Engine Engine Light Ion Engine Power Core Light Nuclear Core Propulsion Aluminum Leg Leg Aluminum Leg Utility Medium Storage Unit Device Trap Extractor Storage Medium Storage Unit Processor Transport Network Coupler Protection Weapon Shielding Weapon Assault Rifle Energy Gun EM Pulse Gun Energy Cannon Beam Cannon Ballistic Gun Assault Rifle Launcher Grenade Launcher Build | -11 -10 -10 -9 ------- Run | Yrd Mat Min Mat Slots Evolved 2 | . . . 2 Power 1 | . . . 1 Propulsion . | . . . . Utility 1 | . . . 1 Weapon . | . . . . Parts Attached 19 | 6 3 4 6 Power 3 | 1 . 1 1 Engine 2 | 1 . . 1 Core 1 | . . 1 . Reactor . | . . . . Propulsion 5 | 2 . 2 1 Treads . | . . . . Leg 5 | 2 . 2 1 Wheel . | . . . . Hover . | . . . . Flight . | . . . . Utility 6 | 1 3 . 2 Device 2 | . . . 2 Storage 2 | 1 1 . . Processor 1 | . 1 . . Hackware . | . . . . Protection 1 | . 1 . . Artifact . | . . . . Weapon 5 | 2 . 1 2 Energy Gun 1 | . . . 1 Energy Cannon 1 | . . . 1 Ballistic Gun 2 | 2 . . . Ballistic Cannon . | . . . . Launcher 1 | . . 1 . Special Weapon . | . . . . Impact Weapon . | . . . . Slashing Weapon . | . . . . Piercing Weapon . | . . . . Special Melee Weapon . | . . . . Unidentified Prototypes . | . . . . Parts Lost 12 | . . 2 10 Power 2 | . . . 2 Propulsion 3 | . . 1 2 Utility 2 | . . . 2 Weapon 5 | . . 1 4 Highest Loss Streak 5 | . . 1 5 To Critical Strikes . | . . . . Average Slot Usage (%) 89 | . 96 97 48 Engine 5 | . 14 2 . Core 6 | . . 11 3 Leg 25 | . 28 27 14 Device 1 | . . . 6 Storage 13 | . 14 14 11 Processor 2 | . 8 . . Protection 8 | . 2 14 2 Ballistic Gun 19 | . 28 19 2 Launcher 4 | . . 7 2 Peak Build Rating 12 | 6 7 9 12 Average Rating 7 | 4 6 8 5 On Entrance 5 | . 6 7 9 Naked Turns . | . . . . Heaviest Build 22 | 12 18 21 22 Greatest Support 20 | 20 20 20 20 Greatest Overweight (x) 4 | . . 2 4 Average Overweight (x) . | . . . 1 Largest Inventory Capacity 10 | 8 10 10 10 Average Capacity 9 | 6 9 10 10 Most Carried 6 | 5 4 6 3 Average Carried 2 | 2 2 3 . Final Capacity 10 | 8 10 10 10 Final Carried 3 | 2 3 2 . Class Distribution -------------------- 94% | Mutant 5% | Scavenger-Mutant Dominant Class ---------------- Mutant | -10/Materials Mutant | -10/Mines Mutant | -9/Materials Resources | -11 -10 -10 -9 ----------- Run | Yrd Mat Min Mat Matter Collected 645 | 278 98 250 19 Remotely . | . . . . Salvage Created 661 | 30 216 359 56 Parts 42 | 2 13 25 2 Haulers Intercepted . | . . . . Recyclers Shooed . | . . . . Parts Field Recycled . | . . . . Retrieved Matter . | . . . . Parts Self-Destructed . | . . . . Prevented . | . . . . Kills | -11 -10 -10 -9 ------- Run | Yrd Mat Min Mat Combat Hostiles Destroyed 21 | . 7 12 2 Guns 19 | . 7 12 . Cannons 1 | . . . 1 AOE 1 | . . . 1 Classes Destroyed 4 | 1 2 . 1 Tunneler 1 | 1 . . . Swarmer 9 | . 3 6 . Grunt 11 | . 4 6 1 Duelist 1 | . . . 1 Best Kill Streak 4 | 1 4 3 1 Combat Bots Only 4 | . 4 3 1 Max Kills in Single Turn 2 | 1 2 1 1 Gunslinging 1 | . 1 . . Exploded 1 | . . . 1 Melee . | . . . . Uniques/NPCs Destroyed . | . . . . Combat | -11 -10 -10 -9 -------- Run | Yrd Mat Min Mat Hostile Shots Fired 169 | . 36 64 69 Missed 40 | . 9 15 16 Damage Taken 1277 | . 237 439 601 Core 348 | . 30 76 242 Absorbed by Shields . | . . . . Redirected to Shielding 58 | . . 49 9 Ignored by Resistances 386 | . 72 139 175 Core Remaining (%) 78 | 100 . 57 . Volleys Fired 74 | 3 21 39 11 Largest 2 | 2 2 2 2 Hottest 100 | 40 40 40 100 Shots Fired 114 | 6 42 54 12 Gun 103 | 6 42 54 1 Cannon 8 | . . . 8 Launcher 3 | . . . 3 Special . | . . . . Kinetic 102 | 6 42 54 . Thermal 8 | . . . 8 Explosive 3 | . . . 3 Electromagnetic 1 | . . . 1 Robot Hit Streak 23 | 5 23 13 20 Robot Miss Streak 2 | . 2 2 . Penetration Max . | . . . . Secondary Targets 2 | . 2 . . Max Gunslinging Chain 1 | . 1 . . Shots Hit Robots 96 | 5 36 43 12 Core Hits 37 | 2 11 20 4 Critical Kills . | . . . . Critical Parts Destroyed . | . . . . Critical Strikes . | . . . . Melee Attacks . | . . . . Impact . | . . . . Slashing . | . . . . Piercing . | . . . . Sneak Attacks . | . . . . Combat Hostiles . | . . . . Follow-up Attacks . | . . . . Damage Inflicted 1402 | 67 475 568 292 Guns 1114 | 67 475 561 11 Cannons 139 | . . . 139 Explosions 142 | . . . 142 Melee . | . . . . Ramming 7 | . . 7 . Kinetic 1103 | 67 475 561 . Thermal 139 | . . . 139 Explosive 142 | . . . 142 Electromagnetic 11 | . . . 11 Impact . | . . . . Slashing . | . . . . Piercing . | . . . . Highest Corruption . | . . . . Average Corruption . | . . . . Corruption Purged . | . . . . Corruption Blocked . | . . . . Overload Shots . | . . . . Overflow Damage 6 | . . . 6 Projectiles . | . . . . Explosions 6 | . . . 6 Melee . | . . . . Knockbacks . | . . . . Impact . | . . . . Kinetic . | . . . . Secondary . | . . . . Self-Inflicted Damage 86 | . . . 86 Shots 3 | . . . 3 Rammed . | . . . . Targets Rammed 4 | . . 4 . Kicked 4 | . . 4 . Crushed . | . . . . Highest Temperature 88 | . 9 7 88 Average Temperature 27 | . 3 2 56 Received Heat Transfer 417 | . 159 252 6 Siege Activations . | . . . . Robots Corrupted . | . . . . Combat Hostiles . | . . . . Parts Fried . | . . . . Impact Corruptions . | . . . . Robots Melted . | . . . . Combat Hostiles . | . . . . Parts Melted . | . . . . Heat Transferred 296 | . . . 296 Parts Sabotaged . | . . . . Parts Stolen . | . . . . Parts Stripped . | . . . . Power Chain Reactions . | . . . . Alert | -11 -10 -10 -9 ------- Run | Yrd Mat Min Mat Peak Influence 251 | 5 217 251 57 Initial 71 | . 2 71 46 Average 124 | . 122 169 35 Maximum Alert Level 1 | . 1 1 . Low Security (%) 73 | 100 57 72 100 Level 1 26 | . 42 27 . Level 2 . | . . . . Level 3 . | . . . . Level 4 . | . . . . Level 5 . | . . . . High Security . | . . . . Max Security . | . . . . Squads Dispatched 2 | . 1 . 1 Investigation 1 | . 1 . . Extermination . | . . . . Reinforcement 1 | . . . 1 Assault . | . . . . Garrison . | . . . . Intercept . | . . . . Searches Triggered . | . . . . Construction Impeded . | . . . . Haulers Reinforced . | . . . . Active Scanning Responses . | . . . . Cargo Convoy Interrupts . | . . . . Stealth | -11 -10 -10 -9 --------- Run | Yrd Mat Min Mat Distress Signals 1 | . . . 1 Communications Jammed . | . . . . Distress Signals . | . . . . Times Spotted 34 | . 10 12 12 Peak Tracking Total 7 | . 5 3 7 Tactical Retreats 1 | . . . 1 Traps | -11 -10 -10 -9 ------- Run | Yrd Mat Min Mat Traps Triggered . | . . . . Indirectly . | . . . . Trap Hack Attempts . | . . . . Triggered . | . . . . Disarmed . | . . . . Reprogrammed . | . . . . Reused . | . . . . Traps Extracted . | . . . . Installed . | . . . . Triggered . | . . . . Machines | -11 -10 -10 -9 ---------- Run | Yrd Mat Min Mat Machines Disabled . | . . . . Max in Single Turn . | . . . . Machines Repaired . | . . . . Machines Dismantled . | . . . . Machines Sabotaged . | . . . . Overloaded Fab Kills . | . . . . Hacking | -11 -10 -10 -9 --------- Run | Yrd Mat Min Mat Machines Accessed 2 | . 2 . . Terminals 1 | . 1 . . Fabricators . | . . . . Repair Stations 1 | . 1 . . Recycling Units . | . . . . Scanalyzers . | . . . . Garrison Access . | . . . . Total Hacks 4 | . 4 . . Successful 3 | . 3 . . Failed 1 | . 1 . . Catastrophic . | . . . . Database Lockouts . | . . . . Manual . | . . . . Terminals 3 | . 3 . . Fabricators . | . . . . Repair Stations 1 | . 1 . . Recycling Units . | . . . . Scanalyzers . | . . . . Garrison Access . | . . . . Terminal Hacks 2 | . 2 . . Record 1 | . 1 . . Maintenance Status 1 | . 1 . . Fabricator Hacks . | . . . . Repair Station Hacks 1 | . 1 . . Scan Component 1 | . 1 . . Recycling Unit Hacks . | . . . . Scanalyzer . | . . . . Garrison Access Hacks . | . . . . Unauthorized Hacks . | . . . . Terminals . | . . . . Fabricators . | . . . . Repair Stations . | . . . . Recycling Units . | . . . . Scanalyzers . | . . . . Garrison Access . | . . . . Data Cores Recovered . | . . . . Used . | . . . . Hacking Detections 2 | . 2 . . Full Trace Events 1 | . 1 . . Feedback Events . | . . . . Feedback Blocked . | . . . . Robot Schematics Acquired . | . . . . Robots Built . | . . . . Authchips . | . . . . Time . | . . . . Total Robot Build Rating . | . . . . Part Schematics Acquired . | . . . . Parts Built . | . . . . Authchips . | . . . . Time . | . . . . Total Part Build Rating . | . . . . Parts Repaired . | . . . . Time . | . . . . Parts Recycled . | . . . . Recycled Matter . | . . . . Retrieved Matter . | . . . . Retrieved Components . | . . . . Parts Scanalyzed . | . . . . Part Schematics Acquired . | . . . . Parts Damaged . | . . . . Bothacking | -11 -10 -10 -9 ------------ Run | Yrd Mat Min Mat Used RIF Installer . | . . . . Robots Hacked . | . . . . Non-combat . | . . . . Combat . | . . . . Robot Hacks Applied . | . . . . Relay Couplers Released . | . . . . Fabnet Peak Effective % . | . . . . Robots Rewired . | . . . . Allies Hacked . | . . . . Hacks Repelled . | . . . . Allies | -11 -10 -10 -9 -------- Run | Yrd Mat Min Mat Total Allies . | . . . . Largest Group . | . . . . Highest-Rated Group . | . . . . Highest-Rated Ally . | . . . . Total Orders . | . . . . Ally Attacks . | . . . . Total Damage . | . . . . Kills . | . . . . Allies Corrupted . | . . . . Allies Melted . | . . . . Intel | -11 -10 -10 -9 ------- Run | Yrd Mat Min Mat Robot Analysis Total . | . . . . Derelict Logs Recovered 1 | . . 1 . Drone Launches . | . . . . Drone Recoveries . | . . . . Exploration | -11 -10 -10 -9 ------------- Run | Yrd Mat Min Mat Turns Passed 1219 | 79 377 583 180 Spaces Moved 690 | 55 248 307 80 Core 23 | 13 . . 10 Treads . | . . . . Legs 667 | 42 248 307 70 Wheels . | . . . . Hover . | . . . . Flight . | . . . . Fastest Speed 50 | 50 120 120 120 Average Speed 139 | 103 120 152 177 Slowest Speed 260 | 120 120 260 250 Overloaded Moves . | . . . . Propulsion Burnouts . | . . . . Robots Hopped . | . . . . Cave-ins Triggered . | . . . . Exploration Rate (%) 33 | 5 41 80 9 Regions Visited 3 Branch Regions 1 Pre-discovered Areas 2 | . . 2 . Known Exits Taken . | . . . . Unknown Exits Taken 3 | 1 1 1 . Scrap Searched . | . . . . Spaces Dug . | . . . . Terrain Destroyed 17 | . . . 17 Melee . | . . . . Projectile . | . . . . AOE 17 | . . . 17 Terrain Rammed . | . . . . Walls Destroyed . | . . . . Machines Disabled . | . . . . Actions | -11 -10 -10 -9 --------- Run | Yrd Mat Min Mat Total 830 | 71 285 368 106 Wait 20 | . 9 6 5 Move 687 | 54 247 306 80 Hop . | . . . . Pick Up 21 | 8 4 5 4 Fast Attach . | . . . . Attach 15 | 6 1 2 6 Detach . | . . . . Swap 4 | . 2 2 . Drop 5 | . 1 4 . Fire 74 | 3 21 39 11 Melee . | . . . . Ram . | . . . . Kick 4 | . . 4 . Crush . | . . . . Escape Stasis . | . . . . Rewire . | . . . . Trap . | . . . . Miscellaneous . | . . . . Route ------- -11/Scrapyard -10/Materials (discovered 2 exits: [*Mat] / [*Min]) -10/Mines -9/Materials History --------- Turn | Location | Event 8 | -11/Scrapyard | Discovered new exit (range 15) 80 | -11/Scrapyard | Entered Materials 258 | -10/Materials | Discovered new exit (range 16) 310 | -10/Materials | Build established: Mutant 400 | -10/Materials | Discovered new exit (range 15) 457 | -10/Materials | Entered Mines 603 | -10/Mines | Learned location of Storage (-8) 972 | -10/Mines | Discovered new exit (range 8) 1040 | -10/Mines | Entered Materials 1040 | -9/Materials | Evolved 2 slots: Power x1, Utility x1 1123 | -9/Materials | Lost 5 parts (1p2u2w) 1163 | -9/Materials | Lost 3 parts (1p1n1w) 1218 | -9/Materials | Core integrity fell below 50% 1220 | -9/Materials | Self-destructed Last Messages --------------- Aluminum Leg severed. K-01 Serf collects debris. EM Pulse Gun destroyed. K-01 Serf collects debris. Aluminum Leg destroyed. Lgt. Ion Engine destroyed. L-31 Rogue destroyed. Acquired 19 matter. Acquired Aluminum Leg. Acquired Trap Extractor. ALERT: Hostiles spotted, dispatching reinforcements to Terminal M007. Aluminum Leg destroyed. S-10 Pest destroyed. C-30 ARC bursts open, deploying its payload. S-10 Pest unfolds itself. Beam Cannon destroyed. R-06 Scavenger collects Lgt. Ion Engine. W-16 Scout distress signal alerts nearby ally. K-01 Serf cleans the Fusion Modulator. Map ----- +----------------------------------------------------+ | ?????????????????????????????????????????????????? | | ?????????????????????????????????????????????????? | | ?????????????????????????????????????????????????? | | ?????????????????????????????????????????????????? | | ?????????????????????????????????????????????????? | | ?????????????????????????????????????????????????? | | ?????????????????????????????????????????????????? | | ?????????????????????????????????????????????????? | | ????????????? ??????????????????????????????????? | | ????????????? ??????????????????????????????????? | | ???????????? ??????????????????????????????????? | | ???????????? ??????????????????????????????????? | | ???????????? ??????????????????????????????????? | | ???????????# #?????????????????????????????????? | | ??????????## ##????????????????????????????????? | | ??????????# #????????????????????????????????? | | ??????????# " #???######???????????????????????? | | ??????????+ "T ????# ???????????????????????? | | ??????????# ????# ???????????????????????? | | ??????????# ????# ???????????????????????? | | ???????????# ###### ???????????????????????? | | ??????###### # #= " ???????????????????????? | | ??????# +! ## %#?#########?????????????? | | ??????# # ##s s# w #?????????????? | | ??????# #! ## ss# #?????????????? | | ??????# ### ## ## @ #?????????????? | | ??????# ????# ########u # """ """ #?????????????? | | ????????????#+######## # """ ""????????????????? | | ????????????# # #?""" "?????????????????? | | ????????????# =# s #? k ?????????????????? | | ????????????# # #?? ?????????????????? | | ????????????# # ########????????????????? | | ????????????# """=%/ # ##????????????????????? | | ????????????# """"" # # #????????????????????? | | ????????????# """"" # # #????????????????????? | | ????????????# """"" # % # ####################### | | ????????????# """ # | | ????????????########## | | ????????????????????## | | ????????????????????############################## | | ??????????????????????###????????????????????????? | | ?????????????????????????????????????????????????? | | ?????????????????????????????????????????????????? | | ?????????????????????????????????????????????????? | | ?????????????????????????????????????????????????? | | ?????????????????????????????????????????????????? | | ?????????????????????????????????????????????????? | | ?????????????????????????????????????????????????? | | ?????????????????????????????????????????????????? | | ?????????????????????????????????????????????????? | +----------------------------------------------------+ Best States ------------- Heat Dissipation 42 Energy Generation 14 Energy Capacity 160 Matter Stores 300 Matter Capacity 300 Sight Range 16 Terrain Scan Density 10 Resistance: KI 20 Resistance: TH 20 Resistance: EX 20 Resistance: EM 20 Resistance: I 20 Resistance: S 20 Resistance: P 20 Weapon Shielding 33 Evasion (%) 55 Offensive Hacking 10 Trap Extractor Capacity 4 Item Schematics ----------------- None Robot Schematics ------------------ None Fabricated ------------ Nothing Alien Tech Used ----------------- None Achievements -------------- None Challenges ------------ None Game ------ Seed DrainedElectrostormMask Manual? 0 Play Time 00:11:41 Cumulative 3.5 hours Start 2025.03.18 @ 18:08:05 End 2025.03.18 @ 18:18:13 Sessions 1 Manual Loads 0 Difficulty Adventurer Special Mode None Game No. 4 Rogue 0 Adventurer 4 Explorer 0 Win Type - Total 0 Types 0/0/0/0/0/0/0/0/0 Lore% 0 Gallery% 10 Achievement% 10 Wizard Run 0 Options --------- Layout 1 ASCII 0 Keyboard 0 Movement Mouse Keybinds 0 Fullscreen 1 Font 32/SmallcapsGlow Map View 50x40 Zoom Use 0% Tactical HUD 0 Map Filters NONE Filters NONE Steam 1 RUN: 7ea53b35-43b6-49f8-90d6-a058e793933a